bitfinex/quotes_ETHUSD_20241106
["timestamp","ask_amount","ask_price","bid_price","bid_amount"]
[1730922498247,0.55,2666.4,2665.6,0.7548]
[1730922498596,0.8035,2666.1,2664.4,0.8165]
[1730922499977,0.8035,2666.1,2664.5,0.55]
[1730922500149,0.8035,2666.1,2664.6,0.7608]
[1730922501690,0.7551,2666.3,2664.8,0.7608]
[1730922501892,0.7551,2666.3,2664.7,0.07503259]
[1730922501893,2.58689107,2666.5,2665.0,0.7608]
[1730922502090,2.58689107,2666.5,2665.2,0.7608]
[1730922502398,2.84558018,2666.5,2665.4,0.7608]
[1730922502697,0.7551,2667.2,2665.7,0.7608]
[1730922502848,1.84070396,2667.4,2665.7,0.7608]
[1730922503049,2.22705237,2667.3,2665.7,0.7608]
[1730922503288,1.80371661,2667.4,2665.7,0.7608]
[1730922503543,1.80371661,2667.4,2665.9,0.7608]
[1730922504213,1.80371661,2667.4,2666.1,0.8202]
[1730922504430,2.33935588,2667.5,2665.8,0.01]
[1730922504431,0.83899888,2667.5,2666.2,0.86388739]
[1730922504743,0.7608,2667.9,2666.2,0.86388739]
[1730922504921,0.7608,2667.9,2666.2,0.7889]
[1730922505456,1.82707371,2669.5,2667.1,0.01]
[1730922505606,1.89629271,2669.4,2667.4,0.7889]
[1730922505797,1.89629271,2669.4,2667.5,0.86384361]
[1730922505798,3.14660738,2669.4,2667.5,0.86384361]
[1730922506025,0.7889,2668.8,2667.7,0.02]
[1730922506208,1.31549502,2669.4,2668.0,0.7669]
[1730922506209,1.8262999,2669.3,2668.0,0.7669]
[1730922506614,0.39065906,2669.4,2668.1,0.82309756]
[1730922506615,1.87094693,2669.1,2668.1,0.82309756]
[1730922507006,0.09837209,2669.0,2668.1,0.82309756]
[1730922507241,0.09837209,2669.0,2668.2,0.7769]
[1730922507438,1.81741674,2669.5,2668.3,0.01]
[1730922507646,1.83529848,2669.5,2668.3,0.8224]
[1730922508467,1.89163364,2669.3,2668.3,0.8224]
[1730922508625,1.88812208,2669.1,2668.3,0.8224]
[1730922509030,0.55,2669.0,2668.3,0.8224]
[1730922509231,2.42998537,2669.0,2668.3,0.8224]
[1730922509730,0.55,2669.0,2668.3,0.8224]
[1730922510143,1.83529848,2669.5,2668.3,0.8224]
[1730922510397,1.83529848,2669.5,2668.5,0.7549]
[1730922510893,1.83529848,2669.5,2668.2,0.7549]
[1730922511172,1.83529848,2669.5,2668.4,0.01]
[1730922511378,1.83529848,2669.5,2668.5,0.7549]
[1730922511738,1.83529848,2669.5,2668.4,0.02]
[1730922511739,1.83529848,2669.5,2668.7,0.8113]
[1730922512073,1.89427756,2669.5,2668.9,0.8113]
[1730922512230,1.82255109,2669.5,2668.9,0.8113]
[1730922512570,0.02902851,2669.6,2668.9,0.8113]
[1730922513075,0.55,2669.9,2668.9,0.8113]
[1730922513272,0.32414009,2669.8,2668.9,0.8113]
[1730922513474,0.55,2669.7,2668.9,0.8113]
[1730922514667,3.55,2669.7,2668.9,0.8113]
[1730922515250,3.55,2669.7,2668.2,0.7725]
[1730922516384,4.40097141,2669.7,2668.2,0.7725]
[1730922516552,1.3565,2669.5,2668.2,0.7725]
[1730922525762,0.55,2669.1,2668.1,0.05619756]
[1730922525948,0.55,2668.9,2667.9,0.8224]
[1730922526150,0.55,2668.9,2667.6,0.8224]
[1730922526151,0.55,2668.7,2667.6,0.8224]
[1730922529166,0.55,2668.5,2667.6,0.8224]
[1730922529370,0.55,2668.5,2666.2,0.8121]
[1730922531553,0.7605,2668.4,2666.2,0.8121]
[1730922531783,0.55,2668.3,2666.2,0.8121]
[1730922531942,0.55,2668.1,2666.4,0.8152]
[1730922532143,0.55,2668.1,2666.6,0.8152]
[1730922532375,0.55,2667.9,2666.6,0.8152]
[1730922534257,0.7605,2668.0,2666.6,0.8152]
[1730922535154,0.8082,2668.3,2666.6,0.8152]
[1730922535367,0.8082,2668.3,2666.8,0.7673]
[1730922535748,0.8082,2668.3,2667.0,0.7673]
[1730922536581,0.55,2668.2,2667.0,0.7673]
[1730922536943,0.55,2668.3,2667.0,0.7673]
[1730922537559,0.06519086,2668.4,2667.2,0.8294]
[1730922538365,0.83321016,2668.5,2667.2,0.8294]
[1730922538575,0.8228,2668.9,2667.4,0.7523]
[1730922538769,0.8228,2668.9,2667.6,0.7523]
[1730922539200,0.85678672,2668.9,2667.6,0.7523]
[1730922539499,0.8228,2669.4,2667.8,0.777]
[1730922539668,0.06517387,2669.5,2668.0,0.777]
[1730922539868,0.06517387,2669.5,2668.1,0.85194374]
[1730922540700,0.06517387,2669.5,2668.1,0.777]
[1730922541196,0.06517387,2669.5,2668.3,0.777]
[1730922542571,0.55,2669.4,2668.3,0.777]
[1730922545098,0.7623,2669.3,2668.3,0.777]
[1730922545297,0.55,2669.2,2668.3,0.777]
[1730922545740,0.55,2669.2,2666.9,0.27870504]
[1730922545962,0.7723,2669.3,2666.4,1.44725899]
[1730922545963,0.7704,2669.1,2666.4,1.44725899]
[1730922546113,0.7704,2669.1,2666.4,1.43725899]
[1730922546114,0.55,2668.7,2666.4,1.43725899]
[1730922546916,0.57,2668.7,2666.4,1.43725899]
[1730922547098,0.55,2668.5,2666.2,0.3350661]
[1730922547305,0.55,2668.5,2666.2,0.05624927]
[1730922548775,0.55,2668.5,2666.3,0.806]
[1730922549077,0.55,2668.3,2666.3,0.806]
[1730922549426,0.55,2668.1,2666.3,0.806]
[1730922550225,0.55,2668.1,2666.5,0.8145]
[1730922550436,0.55,2668.1,2666.6,0.07498963]
[1730922550637,0.55,2668.1,2666.7,0.8145]
[1730922550851,0.55,2668.1,2666.9,0.8145]
[1730922551084,0.55,2668.1,2667.1,0.8145]
[1730922551739,0.7802,2668.6,2667.1,0.8145]
[1730922552069,0.7802,2668.6,2667.3,0.8145]
[1730922552374,0.7802,2668.6,2667.5,0.8145]
[1730922553879,0.55,2668.5,2667.5,0.8145]
[1730922557075,0.55,2668.3,2667.5,0.8145]
[1730922557277,1.0549563,2668.3,2667.5,0.8145]
[1730922557571,0.55,2668.5,2667.5,0.8145]
[1730922557975,4.3645,2668.5,2667.5,0.8145]
[1730922559878,0.55,2668.5,2667.5,0.8145]
[1730922564113,1.61933285,2668.6,2667.6,0.07496389]
[1730922564314,0.83913285,2668.6,2667.6,0.07496389]
[1730922564452,0.83913285,2668.6,2666.8,0.01]
[1730922564453,0.83913285,2668.6,2667.7,0.7516]
[1730922564649,0.88747484,2669.2,2667.9,0.7516]
[1730922564875,0.47170855,2669.1,2667.9,0.7516]
[1730922565299,0.47170855,2669.1,2668.0,0.82654972]
[1730922565458,0.47170855,2669.1,2668.0,0.7516]
[1730922565650,0.8223,2669.2,2668.0,0.7516]
[1730922567077,0.55,2669.1,2668.0,0.7516]
[1730922570799,3.8233,2669.0,2668.0,0.7516]
[1730922570960,0.55,2668.9,2668.0,0.7516]
[1730922575219,3.55,2668.9,2668.0,0.7516]
[1730922575509,0.55,2668.7,2668.0,0.7516]
[1730922577717,0.85528955,2669.0,2668.0,0.7516]
[1730922577874,4.5142,2669.3,2668.0,0.7516]
[1730922578074,6.97474159,2669.3,2668.0,0.7516]
[1730922578392,3.89478547,2669.6,2666.9,0.01]
[1730922578393,3.22314159,2669.5,2668.2,0.7865]
[1730922578594,0.57771778,2669.5,2668.3,0.07493712]
[1730922578790,0.57771778,2669.5,2668.4,0.7865]
[1730922579383,0.55,2669.4,2668.4,0.7865]
[1730922580103,0.83184115,2669.6,2668.6,0.779]
[1730922580303,3.89854523,2669.6,2668.6,0.779]
[1730922580710,3.97573222,2669.4,2668.6,0.46384287]
[1730922581098,3.22303222,2669.3,2668.6,0.46384287]
[1730922581294,0.55,2669.2,2668.6,0.2899125]
[1730922581499,3.55,2669.2,2668.6,0.2899125]
[1730922581707,0.55,2669.2,2668.6,0.2899125]
[1730922582899,3.22303222,2669.5,2668.1,0.01]
[1730922583225,5.93177461,2669.7,2668.1,0.01]
[1730922583620,5.93279312,2669.7,2668.1,0.01]
[1730922583912,6.9843035,2669.7,2668.1,0.01]
[1730922584505,3.0,2669.6,2668.2,0.779]
[1730922585224,0.55,2669.6,2668.4,0.767]
[1730922585426,1.85449645,2669.6,2668.6,0.767]
[1730922587592,4.85449645,2669.6,2668.7,0.0749175]
[1730922587893,0.82635006,2669.7,2668.6,0.777]
[1730922588093,1.88698585,2670.2,2668.6,0.777]
[1730922588315,3.0,2670.3,2668.6,0.777]
[1730922588316,2.60797669,2670.3,2668.6,0.777]
[1730922588516,1.82221855,2670.1,2668.6,0.777]
[1730922588831,0.767,2670.3,2668.6,0.777]
[1730922588832,1.84097669,2670.3,2668.8,0.7563]
[1730922589034,0.55,2670.0,2668.8,0.7563]
[1730922589216,1.88239233,2669.7,2668.8,0.7563]
[1730922589401,0.55,2670.0,2668.8,0.7563]
[1730922589602,0.55,2669.7,2668.8,0.7563]
[1730922589788,2.39248214,2669.7,2668.8,0.7563]
[1730922590389,2.66618931,2669.6,2668.8,0.7563]
[1730922590593,5.41065852,2669.5,2668.8,0.7563]
[1730922591891,2.41065852,2669.5,2668.8,0.7563]
[1730922592742,1.84248214,2669.7,2668.8,0.7563]
[1730922592939,2.40218035,2669.7,2668.8,0.7563]
[1730922594020,0.55,2669.4,2668.8,0.7563]
[1730922598048,0.55,2669.4,2668.9,0.83272854]
[1730922598439,0.55,2669.4,2668.9,0.7578]
[1730922599157,0.55,2669.4,2669.0,0.074925]
[1730922599357,0.55,2669.4,2669.0,0.7578]
[1730922599679,1.88116579,2669.8,2669.0,0.7578]
[1730922599816,1.86908931,2669.6,2668.6,0.7578]
[1730922600017,1.89450601,2670.1,2668.7,0.7578]
[1730922600219,5.09596699,2670.3,2668.7,0.7578]
[1730922600491,5.09596699,2670.3,2669.1,1.1e-07]
[1730922600492,1.88107873,2670.3,2669.1,1.1e-07]
[1730922600617,1.80165006,2670.6,2669.1,0.07489852]
[1730922600822,1.80165006,2670.6,2669.2,1.2055673]
[1730922601072,1.80165006,2670.6,2669.1,0.07489852]
[1730922601073,2.3858456,2670.6,2669.1,1.1e-07]
[1730922601364,5.03430985,2670.4,2669.1,1.1e-07]
[1730922601545,1.81877723,2670.4,2669.1,1.1e-07]
[1730922601872,0.55,2670.0,2669.1,1.1e-07]
[1730922602223,0.55,2669.8,2669.1,1.1e-07]
[1730922602472,3.55,2669.8,2669.1,1.1e-07]
[1730922602622,6.76553262,2669.8,2669.1,1.1e-07]
[1730922602949,3.55,2669.8,2669.1,1.1e-07]
[1730922603262,0.55,2669.6,2669.1,1.1e-07]
[1730922607267,3.55,2669.6,2669.1,1.1e-07]
[1730922608361,0.55,2669.4,2669.1,1.1e-07]
[1730922608719,0.55,2669.2,2668.6,0.8275]
[1730922608867,0.55,2669.0,2668.6,0.8275]
[1730922609320,3.55,2669.0,2668.6,0.8275]
[1730922609526,6.76762914,2669.0,2668.6,0.8275]
[1730922609939,3.55,2669.0,2668.6,0.8275]
[1730922610148,6.76762914,2669.0,2668.6,0.8275]
[1730922610362,0.55,2668.8,2668.6,0.8275]
[1730922610581,0.55,2668.8,2667.3,0.40054254]
[1730922610871,6.7726352,2668.8,2666.7,0.02]
[1730922611165,3.55,2668.8,2666.9,0.01]
[1730922611327,3.55,2668.8,2667.0,0.07495636]
[1730922611328,0.55,2668.6,2667.0,0.07495636]
[1730922611526,0.55,2668.6,2666.9,0.01]
[1730922611527,0.55,2668.6,2667.1,0.88625637]
[1730922611961,0.55,2668.6,2667.1,0.88625639]
[1730922612552,0.55,2668.6,2667.1,0.8113]
[1730922612894,0.98803274,2668.6,2667.1,0.8113]
[1730922613380,0.55,2668.7,2667.3,0.8113]
[1730922613715,0.55,2668.8,2667.5,0.8113]
[1730922616873,1.3032,2668.2,2666.8,0.8331]
[1730922617097,0.55,2668.0,2666.8,0.8331]
[1730922617298,3.7532,2668.1,2666.8,0.8331]
[1730922617299,0.55,2667.8,2666.8,0.8331]
[1730922617648,0.55,2667.8,2666.9,0.07498861]
[1730922618491,3.0,2668.1,2667.0,0.8331]
[1730922618705,3.7532,2668.2,2667.2,0.8331]
[1730922618847,0.55,2668.2,2667.2,0.8331]
[1730922619047,3.21475635,2668.3,2667.3,0.07496897]
[1730922619242,3.21475635,2668.3,2667.4,0.8251]
[1730922619487,3.21475635,2668.3,2667.5,0.07496429]
[1730922619794,3.21475635,2668.3,2666.9,0.01]
[1730922620034,3.21475635,2668.3,2666.9,0.8351]
[1730922620296,3.21475635,2668.3,2666.9,0.92005758]
[1730922620492,3.21475635,2668.3,2667.1,0.8251]
[1730922620650,3.21475635,2668.3,2667.2,0.90005396]
[1730922620850,3.21561422,2669.0,2667.2,0.8251]
[1730922621147,0.39753142,2668.9,2667.2,0.8251]
[1730922622283,3.39753142,2668.9,2667.2,0.8251]
[1730922623394,4.06757917,2669.0,2667.2,0.8251]
[1730922623395,3.21561422,2669.0,2667.8,0.01]
[1730922623550,3.21561422,2669.0,2667.9,0.7571]
[1730922623862,3.21561422,2669.0,2668.0,0.7571]
[1730922625154,3.21561422,2669.0,2668.2,0.7571]
[1730922625384,3.21561422,2669.0,2668.4,0.7571]
[1730922625749,0.7519,2670.0,2668.4,0.7571]
[1730922626200,0.7519,2670.0,2668.1,0.56]
[1730922626201,0.7519,2670.0,2668.6,0.8075]
[1730922626488,0.55,2669.9,2668.8,0.8075]
[1730922626692,0.55,2669.9,2669.0,0.8075]
[1730922626893,0.55,2669.9,2669.1,0.07492334]
[1730922627551,0.55,2669.9,2669.0,0.8075]
[1730922629887,0.84303235,2670.0,2669.0,0.8075]
[1730922630097,0.06508517,2670.4,2669.2,0.7851]
[1730922630296,0.06508517,2670.4,2669.4,0.7851]
[1730922630497,0.06508517,2670.4,2669.5,0.07491147]
[1730922630999,0.06508517,2670.4,2669.4,0.7851]
[1730922631154,0.55,2670.3,2669.4,0.7851]
[1730922631360,3.21606008,2671.1,2669.5,0.0749115]
[1730922631563,0.7902,2670.9,2669.6,0.7851]
[1730922631889,0.7902,2670.9,2669.7,0.0749]
[1730922632258,0.07834623,2670.7,2669.7,0.0749]
[1730922632459,0.07834623,2670.7,2669.8,0.7851]
[1730922632678,0.07834623,2670.7,2670.0,0.7851]
[1730922632913,0.07834623,2670.7,2669.5,0.01]
[1730922632914,0.07834623,2670.7,2670.2,0.7851]
[1730922633120,0.02520008,2671.4,2670.3,0.07488174]
[1730922633324,0.06510329,2671.8,2670.3,0.7851]
[1730922633325,0.0737702,2670.6,2670.3,0.7851]
[1730922633474,0.0737702,2670.6,2669.8,0.08487406]
[1730922633475,0.7851,2671.5,2670.5,0.7851]
[1730922633681,0.02520008,2671.4,2670.7,0.7851]
[1730922633875,0.0995921,2671.4,2670.8,0.07487411]
[1730922634201,0.0995921,2671.4,2670.7,0.7851]
[1730922635213,0.55,2671.3,2670.7,0.7851]
[1730922635407,0.02520008,2671.2,2670.7,0.7851]
[1730922635609,0.09996182,2671.2,2670.7,0.7851]
[1730922636605,0.55,2671.1,2670.7,0.7851]
[1730922636811,0.02520008,2671.0,2669.5,0.7544]
[1730922636993,0.09953924,2671.0,2669.5,0.7544]
[1730922637195,0.55,2670.9,2669.5,0.7544]
[1730922637396,0.02520008,2670.8,2669.5,0.7644]
[1730922637629,0.07413013,2670.8,2669.6,0.07488872]
[1730922637953,0.07413013,2670.8,2669.7,0.802]
[1730922638102,0.07413013,2670.8,2669.8,0.84628849]
[1730922639127,0.07413013,2670.8,2669.8,0.7814]
[1730922639302,0.07413013,2670.8,2669.8,0.7714]
[1730922639736,1.82767354,2671.3,2669.8,0.84627658]
[1730922639941,0.07127849,2670.7,2669.8,0.84627658]
[1730922640239,0.07119001,2670.6,2670.0,0.7714]
[1730922640444,0.07119001,2670.6,2670.2,0.7714]
[1730922640634,0.02520008,2671.1,2670.3,0.0748874]
[1730922641032,1.80247346,2671.3,2670.4,0.7714]
[1730922641033,0.07150097,2671.0,2670.4,0.7714]
[1730922641227,1.86347302,2671.4,2670.5,0.84627443]
[1730922641397,0.06901836,2670.9,2670.5,0.84627443]
[1730922641600,1.80247346,2671.3,2670.5,0.7714]
[1730922641801,0.06894062,2670.8,2670.5,0.7714]
[1730922642037,1.80247346,2671.3,2670.5,0.7714]
[1730922642244,0.06886556,2670.7,2670.5,0.7714]
[1730922642431,1.87111788,2671.1,2670.5,0.7714]
[1730922642639,0.06878781,2670.6,2670.5,0.7714]
[1730922642841,1.87111788,2671.1,2670.5,0.7714]
[1730922643010,0.06878781,2670.6,2670.5,0.7714]
[1730922643209,1.85744994,2671.0,2670.5,1.1e-07]
[1730922643437,0.06882263,2670.6,2670.5,1.1e-07]
[1730922643751,1.85744994,2671.0,2670.5,1.1e-07]
[1730922643900,0.06882263,2670.6,2670.5,1.1e-07]
[1730922644110,1.80247346,2671.3,2670.5,1.1e-07]
[1730922644454,1.81114233,2670.9,2670.5,1.1e-07]
[1730922644659,1.87111788,2671.1,2670.5,1.1e-07]
[1730922644804,0.0689808,2670.8,2670.5,1.1e-07]
[1730922645000,1.87111788,2671.1,2670.5,1.1e-07]
[1730922645246,0.06890306,2670.7,2670.5,1.1e-07]
[1730922645447,1.84894023,2671.2,2670.5,1.1e-07]
[1730922645659,0.06884674,2670.6,2670.5,1.1e-07]
[1730922645827,2.36283999,2671.2,2670.5,1.1e-07]
[1730922646006,0.06884674,2670.6,2670.5,1.1e-07]
[1730922646204,1.87111788,2671.1,2670.5,5e-08]
[1730922646555,0.06884674,2670.6,2670.5,5e-08]
[1730922646725,1.87111788,2671.1,2670.5,5e-08]
[1730922646925,0.06884674,2670.6,2670.5,5e-08]
[1730922647152,3.0,2671.4,2670.5,5e-08]
[1730922647153,1.82767354,2671.3,2670.5,5e-08]
[1730922647350,0.06661572,2670.6,2670.5,5e-08]
[1730922647805,1.87111788,2671.1,2670.5,5e-08]
[1730922648006,0.06661572,2670.6,2670.5,5e-08]
[1730922648261,1.8445346,2670.7,2670.5,5e-08]
[1730922648424,0.06661572,2670.6,2670.5,5e-08]
[1730922650362,3.0,2671.4,2670.5,5e-08]
[1730922650577,2.66068414,2671.5,2670.5,5e-08]
[1730922650578,0.06041458,2670.6,2670.5,5e-08]
[1730922650793,4.87334516,2671.4,2670.5,5e-08]
[1730922650938,0.0583526,2670.6,2670.5,5e-08]
[1730922651131,1.86199951,2671.2,2670.5,5e-08]
[1730922651473,0.05874129,2671.1,2670.5,5e-08]
[1730922651981,0.05874129,2671.1,2670.5,0.07487039]
[1730922652566,0.05874129,2671.1,2670.5,5e-08]
[1730922653269,1.87811644,2671.1,2670.5,5e-08]
[1730922654925,5.60063268,2669.4,2655.4,3.0]
[1730922655129,1.81211997,2671.0,2669.5,0.48553173]
[1730922655344,1.89605627,2671.3,2669.4,12.68]
[1730922655870,1.89605627,2671.3,2669.6,0.55]
[1730922656089,1.89605627,2671.3,2669.8,0.55]
[1730922656389,1.89605627,2671.3,2670.0,0.55]
[1730922657177,3.0,2671.4,2670.0,0.55]
[1730922657333,2.70117603,2671.5,2670.0,0.55]
[1730922657334,5.70117603,2671.5,2670.0,0.55]
[1730922657528,5.70117603,2671.5,2670.1,0.0748657]
[1730922658128,0.05892113,2671.4,2670.1,0.0748657]
[1730922659160,0.05892113,2671.4,2670.0,0.55]
[1730922659360,4.93226629,2671.4,2670.0,0.55]
[1730922660763,4.87334516,2671.4,2670.0,0.55]
[1730922660970,2.97311211,2673.6,2673.2,0.01]
[1730922661279,1.87537649,2674.8,2673.3,2.60683222]
[1730922661523,1.8517622,2674.9,2673.4,0.33545464]
[1730922661668,1.8517622,2674.9,2673.4,0.07477142]
[1730922661862,1.8517622,2674.9,2673.1,0.92462604]
[1730922661863,1.8517622,2674.9,2673.2,0.55]
[1730922663264,0.1721248,2675.0,2673.4,0.55]
[1730922663466,0.1721248,2675.0,2673.6,0.55]
[1730922663679,0.1721248,2675.0,2673.8,0.55]
[1730922667464,0.1721248,2675.0,2673.3,5.0]
[1730922667670,0.1721248,2675.0,2673.4,1.05]
[1730922668477,0.1721248,2675.0,2673.4,2.08429229]
[1730922668686,0.1721248,2675.0,2673.6,0.55]
[1730922669788,1.8517622,2674.9,2673.6,0.55]
[1730922670036,0.04143733,2674.8,2673.6,1.47462604]
[1730922670267,0.1721248,2675.0,2673.8,0.55]
[1730922670550,0.04002367,2674.7,2673.9,0.07474879]
[1730922670722,0.04017869,2674.9,2674.0,0.55]
[1730922671067,0.04017869,2674.9,2673.7,1.17551787]
[1730922671068,0.04010118,2674.8,2673.8,0.55]
[1730922671229,0.1721248,2675.0,2673.8,0.55]
[1730922671550,0.04118362,2674.7,2673.8,0.55]
[1730922671713,0.04253064,2674.9,2673.8,0.55]
[1730922671911,0.1721248,2675.0,2673.8,0.55]
[1730922672109,0.04245314,2674.8,2673.8,0.55]
[1730922672313,0.1721248,2675.0,2673.8,0.55]
[1730922673314,0.1721248,2675.0,2674.0,0.55]
[1730922673513,0.1721248,2675.0,2674.2,0.55]
[1730922673718,0.1721248,2675.0,2674.3,0.07473864]
[1730922674869,0.03999957,2674.9,2674.3,2.03365697]
[1730922675155,0.1721248,2675.0,2674.3,2.03365697]
[1730922675311,0.1721248,2675.0,2674.4,0.92462604]
[1730922675515,0.03999957,2674.9,2674.5,0.27810691]
[1730922675963,0.1721248,2675.0,2674.5,0.27810691]
[1730922676178,0.1721248,2675.0,2674.7,0.55]
[1730922676460,0.03999957,2674.9,2674.8,1.47462604]
[1730922676700,0.1721248,2675.0,2674.8,1.17551787]
[1730922676856,0.1721248,2675.0,2674.5,0.2033657]
[1730922677049,0.1721248,2675.0,2673.7,3.74]
[1730922677282,0.1721248,2675.0,2673.8,1.25]
[1730922677491,0.04010118,2674.9,2673.8,1.25]
[1730922679271,0.04010118,2674.9,2673.9,0.07476028]
[1730922679588,0.04010118,2674.9,2673.8,1.25]
[1730922680414,0.04010118,2674.9,2673.9,0.07475631]
[1730922680614,0.04010118,2674.9,2674.1,0.55]
[1730922681618,0.04010118,2674.9,2674.2,0.07474881]
[1730922681772,0.04010118,2674.9,2674.3,0.55]
[1730922682120,0.1721248,2675.0,2674.5,0.55]
[1730922682417,0.06625549,2674.9,2674.1,0.55]
[1730922683317,0.06625549,2674.9,2674.2,0.07475129]
[1730922684077,0.06625549,2674.9,2674.3,1.25]
[1730922684699,0.06625549,2674.9,2674.4,0.07475473]
[1730922685098,0.06625549,2674.9,2674.3,1.25]
[1730922685300,0.06625549,2674.9,2674.4,0.07475161]
[1730922685781,0.06625549,2674.9,2674.5,0.19390925]
[1730922686185,0.05172988,2675.0,2674.5,0.19390925]
[1730922686711,0.06650118,2674.9,2674.6,1.8]
[1730922686920,0.8226,2676.3,2674.6,1.8]
[1730922686921,1.85227061,2675.9,2675.1,2.31176894]
[1730922687077,1.85227061,2675.9,2675.2,0.07473126]
[1730922688022,1.85227061,2675.9,2675.3,0.07473075]
[1730922688317,1.85227061,2675.9,2674.9,0.55]
[1730922688625,1.85227061,2675.9,2674.7,0.19939093]
[1730922688626,1.85227061,2675.9,2675.1,0.55]
[1730922688791,1.85227061,2675.9,2675.2,0.07472578]
[1730922688997,0.625,2676.0,2675.2,0.07472578]
[1730922689195,0.625,2676.0,2675.1,0.55]
[1730922689603,1.84176341,2675.9,2674.9,0.55]
[1730922689922,1.84176341,2675.9,2675.1,1.47462604]
[1730922690128,1.84176341,2675.9,2675.2,0.99935061]
[1730922690426,0.625,2676.0,2675.2,0.99935061]
[1730922690724,1.89657129,2676.8,2675.3,0.55]
[1730922690929,1.89998103,2677.4,2675.3,0.55]
[1730922691088,1.86108927,2676.6,2675.3,0.55]
[1730922691395,0.2715981,2677.4,2674.9,5.0]
[1730922691396,2.61887578,2676.9,2674.9,0.55]
[1730922691791,2.61887578,2676.9,2674.9,1.47462604]
[1730922692127,1.80600328,2676.7,2674.9,1.47462604]
[1730922692437,1.85144753,2676.5,2675.0,0.92462604]
[1730922692927,1.85973239,2676.3,2675.0,0.92462604]
[1730922693329,1.80600328,2676.7,2675.1,0.62472027]
[1730922693628,1.85144753,2676.5,2675.2,0.92462604]
[1730922693786,1.85144753,2676.5,2675.3,5.4e-07]
[1730922693990,1.85973239,2676.3,2675.3,5.4e-07]
[1730922694346,1.87366272,2676.8,2675.3,5.4e-07]
[1730922694490,1.88873989,2676.4,2675.3,5.4e-07]
[1730922694826,2.01107825,2676.4,2674.7,5.19939093]
[1730922695026,5.01107825,2676.4,2674.7,6.44259568]
[1730922695227,5.01107825,2676.4,2674.8,0.64268109]
[1730922695435,5.01107825,2676.4,2674.9,0.64425957]
[1730922695637,5.01107825,2676.4,2675.0,0.64268109]
[1730922696137,0.12233836,2676.4,2675.0,0.64268109]
[1730922696304,0.12233836,2676.4,2674.9,0.64425957]
[1730922696504,0.12233836,2676.4,2674.9,1.28694066]
[1730922696933,0.12233836,2676.4,2675.0,0.64268109]
[1730922698095,0.12233836,2676.4,2674.7,5.84207202]
[1730922698296,2.01107825,2676.4,2674.8,1.36166328]
[1730922698500,2.01107825,2676.4,2674.8,1.96218694]
[1730922698800,2.01107825,2676.4,2674.8,1.88746432]
[1730922699005,2.01107825,2676.4,2674.8,1.28694066]
[1730922702334,0.12233836,2676.4,2674.8,1.28694066]
[1730922702556,0.12233836,2676.4,2674.9,0.64863316]
[1730922703240,0.12233836,2676.4,2674.9,1.29131425]
[1730922703614,0.12233836,2676.4,2675.0,1.31792147]
[1730922704031,4.87366272,2676.8,2675.0,1.31792147]
[1730922704230,0.12233836,2676.4,2675.0,1.31792147]
[1730922704441,0.12233836,2676.4,2675.1,0.19665546]
[1730922704749,0.12233836,2676.4,2675.2,0.07471266]
[1730922704952,0.12233836,2676.4,2675.2,0.71739375]
[1730922705123,4.87366272,2676.8,2675.2,0.71739375]
[1730922705322,0.12250861,2676.4,2675.2,0.71739375]
[1730922705541,4.87366272,2676.8,2675.2,0.71739375]
[1730922705742,0.12250861,2676.4,2675.2,0.71739375]
[1730922706048,0.09800689,2676.4,2675.2,0.71739375]
[1730922706260,4.87366272,2676.8,2675.2,0.64268109]
[1730922706441,0.09794279,2676.4,2675.1,0.19665546]
[1730922706646,4.87366272,2676.8,2675.1,0.19665546]
[1730922706951,0.09794279,2676.4,2675.1,0.19665546]
[1730922707107,4.87366272,2676.8,2675.1,0.19665546]
[1730922707308,0.12242849,2676.4,2675.1,0.19665546]
[1730922707547,4.87366272,2676.8,2675.1,0.19665546]
[1730922707747,0.12242849,2676.4,2675.1,0.19665546]
[1730922707952,4.87366272,2676.8,2675.1,0.19665546]
[1730922708148,0.12242849,2676.4,2675.1,0.19665546]
[1730922708605,4.87366272,2676.8,2675.1,0.19665546]
[1730922708811,0.1232993,2676.7,2675.1,0.19665546]
[1730922712172,0.1232993,2676.7,2675.1,0.83933655]
[1730922712467,0.1232993,2676.7,2675.3,5.0]
[1730922712673,0.08212628,2676.7,2675.4,1.2744728]
[1730922712957,1.83152666,2677.2,2675.4,1.2744728]
[1730922713730,4.83152666,2677.2,2675.5,0.07470538]
[1730922714137,4.83152666,2677.2,2675.6,0.50791782]
[1730922714138,0.09971237,2677.1,2675.6,0.50791782]
[1730922714298,1.84818597,2677.0,2675.6,0.50791782]
[1730922714446,1.94766621,2677.0,2675.6,0.50791782]
[1730922714642,0.625,2675.9,2675.6,0.50791782]
[1730922714841,1.94312387,2676.9,2675.6,0.50791782]
[1730922715082,1.8140062,2677.1,2675.6,0.50791782]
[1730922715388,3.0,2677.2,2675.6,0.50791782]
[1730922715389,1.97267865,2676.8,2675.6,0.50791782]
[1730922715550,1.84387578,2676.9,2675.6,0.50791782]
[1730922715747,0.09878374,2676.7,2675.6,0.50791782]
[1730922715945,1.97267865,2676.8,2675.6,0.50791782]
[1730922716194,0.09855154,2676.6,2675.6,0.50791782]
[1730922716345,0.09878374,2676.7,2675.6,0.50791782]
[1730922716547,0.09831932,2676.5,2675.6,0.50791782]
[1730922716846,0.09808709,2676.4,2675.7,0.64268109]
[1730922717046,1.87366272,2676.8,2675.7,0.64268109]
[1730922717246,1.8140062,2677.1,2675.7,0.64268109]
[1730922717456,0.09878374,2676.7,2675.7,0.64268109]
[1730922717773,0.1,2676.7,2675.7,0.64268109]
[1730922717983,0.09855154,2676.6,2675.7,0.64268109]
[1730922718384,0.09855154,2676.6,2675.8,0.07470533]
[1730922719133,0.09855154,2676.6,2675.7,0.64268109]
[1730922719255,0.09855154,2676.6,2675.6,0.50791782]
[1730922719590,0.1,2676.7,2675.7,0.07470781]
[1730922719789,0.1,2676.7,2675.6,0.50791782]
[1730922720702,0.1,2677.0,2675.6,0.50791782]
[1730922721298,0.12423037,2676.9,2675.7,0.71738066]
[1730922722916,0.12423037,2676.9,2675.7,0.64268109]